[Event "FRA-ch Youth U16 2019"]
[Site "Hyeres"]
[Date "2019.04.20"]
[Round "8.2"]
[White "Zachary, Matheo"]
[Black "Defromont, Benjamin"]
[Result "1-0"]
[ECO "C77"]
[WhiteElo "2281"]
[BlackElo "2200"]
[Annotator "NA"]
[PlyCount "99"]
[EventDate "2019.04.14"]
[EventType "swiss"]
[EventCountry "FRA"]
[SourceTitle "playchess.com"]
[Source "ChessBase"]
[SourceQuality "1"]
[TimeControl "5400+30"]

1. e4 {[%emt 0:00:00]} e5 {[%emt 0:00:00]} 2. Nf3 {[%emt 0:00:00]} Nc6 {[%emt 0:00:00]} 3. Bb5 {[%emt 0:00:00]} a6 {[%emt 0:00:00]} 4. Ba4 {[%emt 0:00:00]} Nf6 {[%emt 0:00:00]} 5. Bxc6 {[%emt 0:00:00]} dxc6 {[%emt 0:00:00]} 6. d3 {[%emt 0:00:00]} Bd6 {[%emt 0:04:43]} 7. Nbd2 {[%emt 0:00:05]} Qe7 {[%emt 0:00:46]} 8. b3 {[%emt 0:03:44]} Be6 {[%emt 0:06:17]} 9. Bb2 {[%emt 0:00:21]} Nd7 {[%emt 0:00:10]} 10. Nf1 {[%emt 0:02:12]} O-O-O {[%emt 0:03:29]} 11. Ne3 {[%emt 0:02:50]} g6 {[%emt 0:11:32]} 12. a3 {[%emt 0:06:34]} f5 {[%emt 0:03:14]} 13. Nd2 {[%emt 0:01:02]} f4 {[%emt 0:04:01]} 14. Nec4 {[%emt 0:00:31]} g5 {[%emt 0:01:11]} 15. Qe2 {[%emt 0:01:38]} g4 {[%emt 0:02:42]} 16. O-O-O {[%emt 0:06:34]} h5 {[%emt 0:01:45]} 17. Kb1 {[%emt 0:02:13]} Kb8 {[%emt 0:03:56]} 18. Nxd6 {[%emt 0:08:32]} cxd6 {[%emt 0:01:26]} 19. Nc4 {[%emt 0:00:58]} f3 {[%emt 0:16:42]} 20. gxf3 {[%emt 0:01:00]} Rhf8 {[%emt 0:00:13]} 21. Nd2 {[%emt 0:07:13]} gxf3 {[%emt 0:00:15]} 22. Qe3 {[%emt 0:00:05]} Bh3 {[%emt 0:02:13]} 23. Nc4 {[%emt 0:04:33]} Bg2 {[%emt 0:06:41]} 24. Rhe1 {[%emt 0:02:56]} Nf6 {[%emt 0:02:02]} 25. d4 {[%emt 0:01:43]} Ng4 {[%emt 0:00:08]} 26. Qd2 {[%emt 0:00:19]} h4 {[%emt 0:04:10]} 27. dxe5 {[%emt 0:15:12]} dxe5 {[%emt 0:01:16]} 28. Qa5 {[%emt 0:00:54]} Rfe8 {[%emt 0:09:02]} 29. Bc3 {[%emt 0:06:05]} Rxd1+ {[%emt 0:09:45]} 30. Rxd1 {[%emt 0:00:06]} Qc7 {[%emt 0:00:18]} 31. Qc5 {[%emt 0:00:46]} Rd8 {[%emt 0:03:54]} 32. Rxd8+ {[%emt 0:02:22]} Qxd8 {[%emt 0:00:04]} 33. Bxe5+ {[%emt 0:00:15]} Nxe5 {[%emt 0:00:09]} 34. Qxe5+ {[%emt 0:00:04]} Ka8 {[%emt 0:00:31]} 35. Kb2 {[%emt 0:01:09]} Bh3 {[%emt 0:00:53]} 36. Qc3 {[%emt 0:02:23]} Be6 {[%emt 0:01:13]} 37. Ne5 {[%emt 0:00:40]} Qd1 {[%emt 0:02:49]} 38. Nxf3 {[%emt 0:01:03]} Qf1 {[%emt 0:00:19]} 39. Qh8+ {[%emt 0:01:57]} Ka7 {[%emt 0:00:04]} 40. Qd4+ {[%emt 0:00:04]} Ka8 {[%emt 0:00:13]} 41. Nxh4 {[%emt 0:00:48]} Qh3 {[%emt 0:00:32]} 42. Ng6 {[%emt 0:00:17]} Qg2 {[%emt 0:00:18]} 43. Nf4 {[%emt 0:00:10]} Qg8 {[%emt 0:00:13]} 44. Nxe6 {[%emt 0:00:05]} Qxe6 {[%emt 0:00:02]} 45. f4 {[%emt 0:00:13]} c5 {[%emt 0:00:06]} 46. Qh8+ {[%emt 0:00:15]} Ka7 {[%emt 0:00:04]} 47. Qe5 {[%emt 0:00:02]} Qb6 {[%emt 0:00:17]} 48. Qc3 {[%emt 0:00:21]} a5 {[%emt 0:00:15]} 49. a4 {[%emt 0:00:14]} c4 {[%emt 0:00:13]} 50. Qxc4 {[%emt 0:01:16]} 1-0

[Event "FRA-ch Youth U16 2019"]
[Site "Hyeres"]
[Date "2019.04.20"]
[Round "8.3"]
[White "Popov, Konstantin"]
[Black "Bassini, Emile"]
[Result "1-0"]
[ECO "B80"]
[WhiteElo "2328"]
[BlackElo "2190"]
[Annotator "NA"]
[PlyCount "124"]
[EventDate "2019.04.14"]
[EventType "swiss"]
[EventCountry "FRA"]
[SourceTitle "playchess.com"]
[Source "ChessBase"]
[SourceQuality "1"]
[TimeControl "5400+30"]

1. e4 {[%emt 0:00:00]} c5 {[%emt 0:00:00]} 2. Nf3 {[%emt 0:00:00]} d6 {[%emt 0:00:00]} 3. d4 {[%emt 0:00:00]} cxd4 {[%emt 0:00:00]} 4. Nxd4 {[%emt 0:00:08]} Nf6 {[%emt 0:00:00]} 5. Nc3 {[%emt 0:00:10]} a6 {[%emt 0:00:00]} 6. g3 {[%emt 0:00:13]} e6 {[%emt 0:00:00]} 7. Bg2 {[%emt 0:00:17]} Be7 {[%emt 0:00:00]} 8. O-O {[%emt 0:00:20]} O-O {[%emt 0:00:01]} 9. a4 {[%emt 0:00:47]} Qc7 {[%emt 0:02:05]} 10. Be3 {[%emt 0:00:25]} Nc6 {[%emt 0:00:30]} 11. f4 {[%emt 0:00:44]} Na5 {[%emt 0:05:14]} 12. Kh1 {[%emt 0:01:33]} Nc4 {[%emt 0:01:01]} 13. Bc1 {[%emt 0:00:27]} Rb8 {[%emt 0:02:29]} 14. b3 {[%emt 0:06:33]} Na5 {[%emt 1:25:40]} 15. Bb2 {[%emt 0:00:40]} b6 {[%emt 0:00:00]} 16. Qe2 {[%emt 0:08:22]} Bb7 {[%emt 0:00:00]} 17. Nd1 {[%emt 0:03:56]} Rfd8 {[%emt 0:00:00]} 18. Nf2 {[%emt 0:07:29]} Nc6 {[%emt 0:00:00]} 19. c4 {[%emt 0:25:35]} Nxd4 {[%emt 0:00:00]} 20. Bxd4 {[%emt 0:00:03]} Nd7 {[%emt 0:00:00]} 21. Ng4 {[%emt 0:07:13]} Bc6 {[%emt 0:00:00]} 22. b4 {[%emt 0:22:59]} a5 {[%emt 0:00:00]} 23. b5 {[%emt 0:00:53]} Bb7 {[%emt 0:00:00]} 24. f5 {[%emt 0:02:06]} e5 {[%emt 0:00:00]} 25. Be3 {[%emt 0:00:44]} f6 {[%emt 0:00:00]} 26. Nf2 {[%emt 0:05:09]} Rbc8 {[%emt 0:00:00]} 27. Rfc1 {[%emt 0:00:27]} Nc5 {[%emt 0:00:00]} 28. Rc3 {[%emt 0:01:15]} Qb8 {[%emt 0:00:00]} 29. g4 {[%emt 0:00:40]} Qa8 {[%emt 0:00:00]} 30. Bd2 {[%emt 0:00:11]} h6 {[%emt 0:00:00]} 31. h4 {[%emt 0:00:39]} Kf8 {[%emt 0:00:00]} 32. Kg1 {[%emt 0:02:03]} Ke8 {[%emt 0:00:00]} 33. g5 {[%emt 0:01:10]} hxg5 {[%emt 0:00:00]} 34. hxg5 {[%emt 0:00:26]} Kd7 {[%emt 0:00:00]} 35. Rg3 {[%emt 0:01:03]} Rh8 {[%emt 0:00:00]} 36. Be3 {[%emt 0:01:05]} Nxe4 {[%emt 0:00:00]} 37. Nxe4 {[%emt 0:00:22]} Bxe4 {[%emt 0:00:00]} 38. Bxb6 {[%emt 0:00:21]} Bxg2 {[%emt 0:00:00]} 39. Rxg2 {[%emt 0:00:34]} Rh4 {[%emt 0:00:00]} 40. c5 {[%emt 0:01:26]} dxc5 {[%emt 0:00:09]} 41. Qa2 {[%emt 0:00:54]} c4 {[%emt 0:02:06]} 42. Rd1+ {[%emt 0:00:30]} Ke8 {[%emt 0:00:09]} 43. gxf6 {[%emt 0:00:25]} gxf6 {[%emt 0:00:48]} 44. Qf2 {[%emt 0:00:33]} Rh5 {[%emt 0:03:42]} 45. Qe2 {[%emt 0:00:56]} Rh4 {[%emt 0:00:02]} 46. Qf2 {[%emt 0:00:31]} Rh5 {[%emt 0:00:51]} 47. Be3 {[%emt 0:00:33]} Qe4 {[%emt 0:00:39]} 48. Qg3 {[%emt 0:00:27]} Qxf5 {[%emt 0:02:06]} 49. Qg8+ {[%emt 0:00:16]} Bf8 {[%emt 0:00:03]} 50. Rf2 {[%emt 0:00:54]} Rh8 {[%emt 0:03:28]} 51. Qxf8+ {[%emt 0:00:23]} Kxf8 {[%emt 0:00:09]} 52. Rxf5 {[%emt 0:00:05]} Ke7 {[%emt 0:00:02]} 53. Rf2 {[%emt 0:01:00]} Rh3 {[%emt 0:00:23]} 54. Bb6 {[%emt 0:00:33]} c3 {[%emt 0:00:30]} 55. Bxa5 {[%emt 0:00:23]} e4 {[%emt 0:01:32]} 56. Re1 {[%emt 0:00:28]} e3 {[%emt 0:00:56]} 57. Kg2 {[%emt 0:00:37]} Kf7 {[%emt 0:00:56]} 58. Kxh3 {[%emt 0:00:29]} exf2 {[%emt 0:00:03]} 59. Rf1 {[%emt 0:00:01]} c2 {[%emt 0:00:31]} 60. Bd2 {[%emt 0:00:01]} Rd8 {[%emt 0:00:09]} 61. Bc1 {[%emt 0:00:26]} Ra8 {[%emt 0:00:29]} 62. Rxf2 {[%emt 0:00:28]} Rxa4 {[%emt 0:04:17]} 1-0

[Event "FRA-ch Youth U16 2019"]
[Site "Hyeres"]
[Date "2019.04.20"]
[Round "8.4"]
[White "Bacrot, Alexandre"]
[Black "Ciccoli, Theo"]
[Result "1-0"]
[ECO "A59"]
[WhiteElo "2241"]
[BlackElo "2177"]
[Annotator "NA"]
[PlyCount "95"]
[EventDate "2019.04.14"]
[EventType "swiss"]
[EventCountry "FRA"]
[SourceTitle "playchess.com"]
[Source "ChessBase"]
[SourceQuality "1"]
[TimeControl "5400+30"]

1. d4 {[%emt 0:00:00]} Nf6 {[%emt 0:00:00]} 2. c4 {[%emt 0:00:14]} c5 {[%emt 0:00:00]} 3. d5 {[%emt 0:00:38]} b5 {[%emt 0:00:00]} 4. cxb5 {[%emt 0:00:04]} a6 {[%emt 0:00:00]} 5. bxa6 {[%emt 0:00:05]} g6 {[%emt 0:00:40]} 6. Nc3 {[%emt 0:00:15]} Bxa6 {[%emt 0:00:22]} 7. e4 {[%emt 0:00:15]} Bxf1 {[%emt 0:00:19]} 8. Kxf1 {[%emt 0:00:05]} d6 {[%emt 0:00:07]} 9. g3 {[%emt 0:00:14]} Bg7 {[%emt 0:00:27]} 10. Kg2 {[%emt 0:00:07]} O-O {[%emt 0:00:21]} 11. Nf3 {[%emt 0:00:04]} Nbd7 {[%emt 0:00:27]} 12. a4 {[%emt 0:00:23]} Qa5 {[%emt 0:03:10]} 13. Bd2 {[%emt 0:21:24]} Rfb8 {[%emt 0:06:13]} 14. Nb5 {[%emt 0:01:33]} Qb6 {[%emt 0:00:48]} 15. Qc2 {[%emt 0:02:15]} Ne8 {[%emt 0:03:49]} 16. Bc3 {[%emt 0:05:11]} Nc7 {[%emt 0:04:08]} 17. Nxc7 {[%emt 0:02:56]} Qxc7 {[%emt 0:00:06]} 18. Bxg7 {[%emt 0:01:30]} Kxg7 {[%emt 1:18:03]} 19. b3 {[%emt 0:06:28]} Rb4 {[%emt 0:00:00]} 20. Rab1 {[%emt 0:05:49]} Qb7 {[%emt 0:00:00]} 21. Nd2 {[%emt 0:03:56]} Rb8 {[%emt 0:00:00]} 22. Nc4 {[%emt 0:03:27]} Qa8 {[%emt 0:00:00]} 23. Rhd1 {[%emt 0:08:16]} Nf6 {[%emt 0:00:00]} 24. Kg1 {[%emt 0:01:13]} Nd7 {[%emt 0:00:00]} 25. Qd3 {[%emt 0:16:16]} Kg8 {[%emt 0:00:00]} 26. f4 {[%emt 0:03:12]} Qa6 {[%emt 0:00:00]} 27. a5 {[%emt 0:05:05]} Qb5 {[%emt 0:00:00]} 28. e5 {[%emt 0:00:07]} dxe5 {[%emt 0:00:00]} 29. fxe5 {[%emt 0:00:06]} Rxb3 {[%emt 0:00:00]} 30. Rxb3 {[%emt 0:00:06]} Qxb3 {[%emt 0:00:00]} 31. Qxb3 {[%emt 0:00:35]} Rxb3 {[%emt 0:00:00]} 32. d6 {[%emt 0:06:14]} Kf8 {[%emt 0:00:00]} 33. dxe7+ {[%emt 0:00:15]} Kxe7 {[%emt 0:00:00]} 34. a6 {[%emt 0:00:35]} Nb6 {[%emt 0:00:00]} 35. a7 {[%emt 0:02:45]} Na8 {[%emt 0:00:00]} 36. Na5 {[%emt 0:00:53]} Ra3 {[%emt 0:01:12]} 37. Nc6+ {[%emt 0:00:07]} Ke6 {[%emt 0:00:01]} 38. Rd6+ {[%emt 0:00:42]} Kf5 {[%emt 0:00:02]} 39. Rd8 {[%emt 0:00:07]} Kg4 {[%emt 0:09:15]} 40. Kf2 {[%emt 0:01:06]} Ra2+ {[%emt 0:00:00]} 41. Ke1 {[%emt 0:00:09]} Nb6 {[%emt 0:00:03]} 42. Rb8 {[%emt 0:00:05]} Ra1+ {[%emt 0:00:39]} 43. Ke2 {[%emt 0:00:20]} Ra2+ {[%emt 0:00:13]} 44. Kd1 {[%emt 0:00:08]} Nd5 {[%emt 0:01:02]} 45. a8=Q {[%emt 0:00:06]} Ne3+ {[%emt 0:00:13]} 46. Kc1 {[%emt 0:00:24]} Rxa8 {[%emt 0:00:44]} 47. Rxa8 {[%emt 0:00:06]} Kh3 {[%emt 0:00:07]} 48. Rf8 {[%emt 0:00:22]} 1-0

[Event "FRA-ch Youth U16 2019"]
[Site "Hyeres"]
[Date "2019.04.21"]
[Round "9.1"]
[White "Zachary, Matheo"]
[Black "Degraeve, Remy"]
[Result "0-1"]
[ECO "E02"]
[WhiteElo "2281"]
[BlackElo "2312"]
[Annotator "NA"]
[PlyCount "150"]
[EventDate "2019.04.14"]
[EventType "swiss"]
[EventCountry "FRA"]
[SourceTitle "playchess.com"]
[Source "ChessBase"]
[SourceQuality "1"]
[TimeControl "5400+30"]

1. d4 {[%emt 0:00:00]} Nf6 {[%emt 0:02:19]} 2. c4 {[%emt 0:00:00]} e6 {[%emt 0:00:08]} 3. Nf3 {[%emt 0:00:00]} d5 {[%emt 0:00:36]} 4. g3 {[%emt 0:00:00]} dxc4 {[%emt 0:00:11]} 5. Qa4+ {[%emt 0:00:26]} Bd7 {[%emt 0:00:50]} 6. Qxc4 {[%emt 0:00:09]} Bc6 {[%emt 0:00:38]} 7. Bg2 {[%emt 0:00:49]} Nbd7 {[%emt 0:03:05]} 8. O-O {[%emt 0:01:42]} Nb6 {[%emt 0:01:00]} 9. Qd3 {[%emt 0:03:21]} Be4 {[%emt 0:01:19]} 10. Qd1 {[%emt 0:02:36]} c5 {[%emt 0:00:37]} 11. Nc3 {[%emt 0:01:22]} Bc6 {[%emt 0:00:05]} 12. dxc5 {[%emt 0:07:16]} Bxc5 {[%emt 0:04:08]} 13. Bf4 {[%emt 0:03:53]} Qxd1 {[%emt 0:04:50]} 14. Raxd1 {[%emt 0:02:33]} Ke7 {[%emt 0:00:12]} 15. Ne5 {[%emt 0:04:18]} Bxg2 {[%emt 0:00:11]} 16. Kxg2 {[%emt 0:00:05]} Rhd8 {[%emt 0:01:10]} 17. Nd3 {[%emt 0:02:54]} Bd6 {[%emt 0:02:29]} 18. Bxd6+ {[%emt 0:03:44]} Rxd6 {[%emt 0:00:06]} 19. Nc5 {[%emt 0:00:28]} Rxd1 {[%emt 0:11:33]} 20. Rxd1 {[%emt 0:02:44]} Rb8 {[%emt 0:14:15]} 21. e4 {[%emt 0:00:54]} Nfd7 {[%emt 0:02:05]} 22. N3a4 {[%emt 0:08:38]} Nxa4 {[%emt 0:05:46]} 23. Rxd7+ {[%emt 0:00:28]} Ke8 {[%emt 0:00:01]} 24. Rxb7 {[%emt 0:00:08]} Rxb7 {[%emt 0:00:02]} 25. Nxb7 {[%emt 0:00:09]} Kd7 {[%emt 0:00:11]} 26. b4 {[%emt 0:03:46]} Nc3 {[%emt 0:02:05]} 27. Nc5+ {[%emt 0:05:29]} Kc6 {[%emt 0:01:04]} 28. a4 {[%emt 0:01:12]} a5 {[%emt 0:01:59]} 29. Nd3 {[%emt 0:00:10]} axb4 {[%emt 0:02:37]} 30. Nxb4+ {[%emt 0:00:02]} Kc5 {[%emt 0:00:45]} 31. Nd3+ {[%emt 0:01:02]} Kd4 {[%emt 0:00:04]} 32. Nf4 {[%emt 0:00:37]} Nxe4 {[%emt 0:01:05]} 33. a5 {[%emt 0:00:28]} Kc5 {[%emt 0:00:10]} 34. f3 {[%emt 0:00:19]} Nd6 {[%emt 0:00:18]} 35. Nh5 {[%emt 0:03:14]} Ne8 {[%emt 0:00:05]} 36. g4 {[%emt 0:00:18]} Kb5 {[%emt 0:01:25]} 37. h4 {[%emt 0:00:35]} Kxa5 {[%emt 0:00:05]} 38. g5 {[%emt 0:00:09]} Kb5 {[%emt 0:00:53]} 39. Ng3 {[%emt 0:00:43]} Nd6 {[%emt 0:00:12]} 40. h5 {[%emt 0:01:45]} Kc5 {[%emt 0:00:10]} 41. f4 {[%emt 0:01:39]} Kd5 {[%emt 0:01:37]} 42. Kf3 {[%emt 0:00:18]} Nf5 {[%emt 0:04:13]} 43. Nf1 {[%emt 0:01:24]} Nd4+ {[%emt 0:02:31]} 44. Kg4 {[%emt 0:01:12]} Ke4 {[%emt 0:00:11]} 45. Ng3+ {[%emt 0:03:30]} Kd5 {[%emt 0:00:06]} 46. Nh1 {[%emt 0:01:38]} f5+ {[%emt 0:02:43]} 47. gxf6 {[%emt 0:00:17]} gxf6 {[%emt 0:00:01]} 48. Nf2 {[%emt 0:01:24]} h6 {[%emt 0:00:34]} 49. Kg3 {[%emt 0:08:56]} e5 {[%emt 0:01:02]} 50. fxe5 {[%emt 0:02:22]} fxe5 {[%emt 0:00:01]} 51. Kg4 {[%emt 0:01:47]} Kd6 {[%emt 0:04:22]} 52. Ne4+ {[%emt 0:02:25]} Ke6 {[%emt 0:02:31]} 53. Nc3 {[%emt 0:00:11]} Nf5 {[%emt 0:00:20]} 54. Ne4 {[%emt 0:00:06]} Nd6 {[%emt 0:00:38]} 55. Nc3 {[%emt 0:00:26]} Ne8 {[%emt 0:00:08]} 56. Nd1 {[%emt 0:02:44]} Nf6+ {[%emt 0:00:16]} 57. Kf3 {[%emt 0:00:16]} Nxh5 {[%emt 0:00:34]} 58. Ne3 {[%emt 0:00:03]} Nf6 {[%emt 0:00:06]} 59. Kg3 {[%emt 0:00:27]} Nd5 {[%emt 0:02:47]} 60. Nc4 {[%emt 0:01:36]} Kf5 {[%emt 0:02:24]} 61. Nd6+ {[%emt 0:00:16]} Kg6 {[%emt 0:00:25]} 62. Kf3 {[%emt 0:01:06]} Nf6 {[%emt 0:00:08]} 63. Nc4 {[%emt 0:00:26]} Kf5 {[%emt 0:00:06]} 64. Nd6+ {[%emt 0:00:59]} Ke6 {[%emt 0:00:05]} 65. Nb7 {[%emt 0:01:20]} Kd5 {[%emt 0:00:16]} 66. Nd8 {[%emt 0:00:14]} h5 {[%emt 0:00:49]} 67. Nf7 {[%emt 0:00:14]} Kd4 {[%emt 0:00:46]} 68. Ng5 {[%emt 0:00:40]} Kd3 {[%emt 0:00:23]} 69. Ne6 {[%emt 0:01:55]} e4+ {[%emt 0:00:10]} 70. Kg3 {[%emt 0:00:06]} e3 {[%emt 0:00:11]} 71. Kf3 {[%emt 0:00:06]} Kd2 {[%emt 0:01:03]} 72. Nf4 {[%emt 0:00:03]} h4 {[%emt 0:00:24]} 73. Kg2 {[%emt 0:00:39]} Nd5 {[%emt 0:00:22]} 74. Nh3 {[%emt 0:00:21]} e2 {[%emt 0:00:10]} 75. Ng1 {[%emt 0:00:08]} Nf4+ {[%emt 0:00:05]} 0-1

[Event "FRA-ch Youth U16 2019"]
[Site "Hyeres"]
[Date "2019.04.21"]
[Round "9.2"]
[White "Harutyunyan, Ruben"]
[Black "Popov, Konstantin"]
[Result "0-1"]
[ECO "B90"]
[WhiteElo "2310"]
[BlackElo "2328"]
[Annotator "NA"]
[PlyCount "98"]
[EventDate "2019.04.14"]
[EventType "swiss"]
[EventCountry "FRA"]
[SourceTitle "playchess.com"]
[Source "ChessBase"]
[SourceQuality "1"]
[TimeControl "5400+30"]

1. e4 {[%emt 0:00:00]} c5 {[%emt 0:02:28]} 2. Nf3 {[%emt 0:00:00]} d6 {[%emt 0:00:12]} 3. d4 {[%emt 0:00:00]} Nf6 {[%emt 0:00:10]} 4. Nc3 {[%emt 0:00:00]} cxd4 {[%emt 0:00:17]} 5. Nxd4 {[%emt 0:00:00]} a6 {[%emt 0:00:13]} 6. Be3 {[%emt 0:00:00]} e5 {[%emt 0:00:15]} 7. Nb3 {[%emt 0:00:00]} Be6 {[%emt 0:00:22]} 8. h3 {[%emt 0:00:00]} Nbd7 {[%emt 0:18:09]} 9. f4 {[%emt 0:00:00]} exf4 {[%emt 0:04:37]} 10. Bxf4 {[%emt 0:00:03]} Rc8 {[%emt 0:00:41]} 11. Qd2 {[%emt 0:00:48]} Ne5 {[%emt 0:02:46]} 12. O-O-O {[%emt 0:00:40]} Qc7 {[%emt 0:02:04]} 13. g4 {[%emt 0:06:06]} b5 {[%emt 0:04:31]} 14. Kb1 {[%emt 0:18:17]} Be7 {[%emt 0:05:13]} 15. Nd5 {[%emt 0:12:39]} Bxd5 {[%emt 0:00:27]} 16. exd5 {[%emt 0:00:05]} O-O {[%emt 0:02:39]} 17. Bg2 {[%emt 0:06:33]} Nfd7 {[%emt 0:02:15]} 18. Nd4 {[%emt 0:00:09]} Nc4 {[%emt 0:03:51]} 19. Qf2 {[%emt 0:10:12]} Bf6 {[%emt 0:00:53]} 20. Bc1 {[%emt 0:10:51]} Qc5 {[%emt 0:16:00]} 21. Rhf1 {[%emt 0:03:08]} Qb4 {[%emt 0:05:40]} 22. Ka1 {[%emt 0:05:33]} Nc5 {[%emt 0:16:27]} 23. g5 {[%emt 0:10:41]} Be5 {[%emt 0:00:37]} 24. c3 {[%emt 0:03:02]} Qa4 {[%emt 0:00:55]} 25. Qc2 {[%emt 0:02:39]} Qxc2 26. Nxc2 {[%emt 0:00:02]} a5 {[%emt 0:05:46]} 27. Kb1 {[%emt 0:03:57]} b4 {[%emt 0:01:49]} 28. b3 {[%emt 0:02:06]} Nb6 {[%emt 0:04:08]} 29. cxb4 {[%emt 0:00:08]} Nb7 {[%emt 0:00:28]} 30. Be3 {[%emt 0:02:25]} Nd7 {[%emt 0:00:12]} 31. bxa5 {[%emt 0:01:07]} Nxa5 {[%emt 0:00:14]} 32. Bd2 {[%emt 0:01:23]} Ra8 {[%emt 0:00:39]} 33. Bxa5 {[%emt 0:01:19]} Rxa5 {[%emt 0:00:02]} 34. Nd4 {[%emt 0:01:26]} Rfa8 {[%emt 0:01:18]} 35. Rf2 {[%emt 0:00:46]} Ra3 {[%emt 0:00:12]} 36. Bf1 {[%emt 0:01:05]} Nc5 {[%emt 0:00:15]} 37. Rc2 {[%emt 0:00:46]} Nxb3 {[%emt 0:00:46]} 38. Nf3 {[%emt 0:00:28]} Bf4 {[%emt 0:00:56]} 39. Bc4 {[%emt 0:00:31]} Na5 {[%emt 0:00:31]} 40. Nd2 {[%emt 0:00:30]} Bxg5 {[%emt 0:00:26]} 41. Bb5 {[%emt 0:00:30]} Rb8 {[%emt 0:00:16]} 42. Kb2 {[%emt 0:00:21]} Rxh3 {[%emt 0:00:31]} 43. a4 {[%emt 0:00:03]} Rd3 {[%emt 0:01:19]} 44. Ne4 {[%emt 0:01:09]} Rxd1 {[%emt 0:00:00]} 45. Nxg5 {[%emt 0:00:04]} Rxd5 {[%emt 0:00:00]} 46. Ne4 {[%emt 0:00:13]} Rd4 {[%emt 0:00:15]} 47. Nc3 {[%emt 0:00:32]} Rxa4 {[%emt 0:00:13]} 48. Nxa4 {[%emt 0:00:12]} Rxb5+ {[%emt 0:00:02]} 49. Kc1 {[%emt 0:00:05]} h5 {[%emt 0:00:12]} 0-1